bitfinex-derivatives/quotes_BTCF0:USTF0_20250905
["timestamp","ask_amount","ask_price","bid_price","bid_amount"]
[1757070079361,0.29637172,112330.0,112320.0,1.09316172]
[1757070080064,0.29637172,112330.0,112320.0,0.28348172]
[1757070080257,0.29637172,112330.0,112320.0,1.09316172]
[1757070080574,0.29637172,112330.0,112320.0,0.02257]
[1757070080875,0.29637172,112330.0,112320.0,1.09316172]
[1757070081273,0.03546,112330.0,112320.0,1.09316172]
[1757070081474,0.29637172,112330.0,112320.0,1.09316172]
[1757070082677,0.03546,112330.0,112320.0,1.09316172]
[1757070082867,0.29637172,112330.0,112320.0,1.09316172]
[1757070083378,0.29637172,112330.0,112320.0,0.83225]
[1757070083578,0.29637172,112330.0,112320.0,1.09316172]
[1757070084478,0.29637172,112330.0,112320.0,1.35746172]
[1757070085382,0.29637172,112330.0,112320.0,1.09655]
[1757070085679,0.29637172,112330.0,112320.0,1.35746172]
[1757070086479,0.03546,112330.0,112320.0,1.35746172]
[1757070086675,0.29637172,112330.0,112320.0,1.35746172]
[1757070086880,0.29637172,112330.0,112320.0,1.67746172]
[1757070087077,0.37395,112340.0,112320.0,2.18837344]
[1757070087281,0.65596172,112340.0,112330.0,0.02289]
[1757070087480,0.65586172,112340.0,112330.0,0.28380172]
[1757070088183,0.65586172,112340.0,112330.0,0.02289]
[1757070088375,0.65586172,112340.0,112330.0,0.28380172]
[1757070088882,0.68156707,112340.0,112330.0,0.28380172]
[1757070089180,0.68156707,112340.0,112330.0,0.02289]
[1757070089375,0.68256707,112340.0,112330.0,0.28380172]
[1757070090383,0.68256707,112340.0,112330.0,0.54810172]
[1757070091684,0.68256707,112340.0,112330.0,0.28719]
[1757070091988,0.65686172,112340.0,112330.0,0.54810172]
[1757070093280,0.37485,112340.0,112330.0,0.57309951]
[1757070093488,0.3618,112340.0,112330.0,0.57309951]
[1757070094085,0.3618,112340.0,112330.0,0.89309951]
[1757070094586,0.3618,112340.0,112330.0,0.57309951]
[1757070094788,0.001,112340.0,112330.0,0.87879951]
[1757070095490,0.001,112340.0,112330.0,1.68831951]
[1757070098389,0.001,112340.0,112330.0,1.42740779]
[1757070098590,0.001,112340.0,112330.0,1.68831951]
[1757070099188,0.001,112340.0,112330.0,0.87879951]
[1757070099387,0.001,112340.0,112330.0,1.43827951]
[1757070101689,0.001,112340.0,112330.0,1.17736779]
[1757070101891,0.001,112340.0,112330.0,1.43827951]
[1757070104179,0.001,112340.0,112330.0,0.62879951]
[1757070104484,0.001,112340.0,112330.0,1.43823951]
[1757070105196,0.001,112340.0,112330.0,1.17732779]
[1757070105494,0.001,112340.0,112330.0,0.86401178]
[1757070105685,0.001,112340.0,112330.0,1.67341178]
[1757070111501,0.001,112340.0,112330.0,0.86401178]
[1757070111697,0.001,112340.0,112330.0,1.67337178]
[1757070113701,0.00104,112340.0,112330.0,1.67337178]
[1757070115003,0.00104,112340.0,112330.0,1.67333178]
[1757070115196,0.00104,112340.0,112330.0,1.67433178]
[1757070115604,4e-05,112340.0,112330.0,1.67433178]
[1757070115900,4e-05,112340.0,112330.0,0.86501178]
[1757070116106,4e-05,112340.0,112330.0,1.67433178]
[1757070120011,4e-05,112340.0,112330.0,0.63318779]
[1757070120207,4e-05,112340.0,112330.0,1.67429178]
[1757070121409,4e-05,112340.0,112330.0,2.03509178]
[1757070124006,4e-05,112340.0,112330.0,2.28509178]
[1757070125412,4e-05,112340.0,112330.0,2.28505178]
[1757070126108,4e-05,112340.0,112330.0,2.37407018]
[1757070126313,0.0002,112350.0,112330.0,2.37407018]
[1757070126507,0.0002,112350.0,112340.0,0.61503399]
[1757070126707,0.37933657,112360.0,112340.0,0.93503399]
[1757070126908,0.37933657,112360.0,112350.0,0.83165]
[1757070127109,0.37913657,112360.0,112350.0,1.41595]
[1757070127814,0.01833657,112360.0,112350.0,1.41595]
[1757070128914,0.02033657,112360.0,112350.0,1.41595]
[1757070129114,0.02133657,112360.0,112350.0,1.41595]
[1757070129314,0.01186657,112360.0,112350.0,1.41595]
[1757070130807,0.01086657,112360.0,112350.0,1.41595]
[1757070131007,0.00886657,112360.0,112350.0,1.41595]
[1757070131214,0.001,112360.0,112350.0,1.41595]
[1757070131415,0.0099858,112360.0,112350.0,1.41595]
[1757070138022,0.001,112360.0,112350.0,1.69600399]
[1757070138321,0.001,112360.0,112350.0,2.01600399]
[1757070138522,0.001,112360.0,112350.0,0.9048302]
[1757070138721,0.001,112360.0,112350.0,2.0339102]
[1757070139319,0.37384,112370.0,112350.0,2.0339102]
[1757070140119,0.40594464,112370.0,112360.0,0.02239]
[1757070140417,0.40574464,112370.0,112360.0,0.83147]
[1757070141625,0.40674464,112370.0,112360.0,0.83147]
[1757070143826,0.40674464,112370.0,112360.0,1.09577]
[1757070145538,0.40674464,112370.0,112360.0,0.28669]
[1757070145836,0.40674464,112370.0,112360.0,1.09569]
[1757070146633,0.40674464,112370.0,112360.0,0.28669]
[1757070146840,0.40674464,112370.0,112360.0,1.09569]
[1757070150945,0.04594464,112370.0,112360.0,1.09569]
[1757070155643,0.04594464,112370.0,112360.0,0.28669]
[1757070155844,0.04594464,112370.0,112360.0,1.09561]
[1757070165250,0.04594464,112370.0,112360.0,1.41561]
[1757070165451,0.02294464,112370.0,112360.0,1.41561]
[1757070166356,0.01010464,112370.0,112360.0,1.64743399]
[1757070167458,0.01010464,112370.0,112360.0,1.35629471]
[1757070167849,0.01010464,112370.0,112360.0,1.67629471]
[1757070170058,0.01010464,112370.0,112360.0,1.35613471]
[1757070170260,0.03158464,112370.0,112360.0,1.35613471]
[1757070170460,0.03158464,112370.0,112360.0,1.67613471]
[1757070170660,0.05728251,112370.0,112360.0,1.67613471]
[1757070171055,0.03580251,112370.0,112360.0,1.67613471]
[1757070171257,0.02669787,112370.0,112360.0,1.67613471]
[1757070171962,0.02669787,112370.0,112360.0,1.66613471]
[1757070172150,0.02669787,112370.0,112360.0,1.35613471]
[1757070172350,0.02669787,112370.0,112360.0,1.67613471]
[1757070172656,0.02669787,112370.0,112360.0,2.03693471]
[1757070173260,0.02669787,112370.0,112360.0,1.73693471]
[1757070173460,0.02669787,112370.0,112360.0,2.03693471]
[1757070174261,0.02669787,112370.0,112360.0,1.73693471]
[1757070174462,0.02669787,112370.0,112360.0,1.71693471]
[1757070174961,0.02669787,112370.0,112360.0,2.03693471]
[1757070175160,0.001,112370.0,112360.0,2.03693471]
[1757070175659,0.001,112370.0,112360.0,1.73693471]
[1757070175858,0.001,112370.0,112360.0,2.03693471]
[1757070177865,0.001,112370.0,112360.0,2.03685471]
[1757070178057,0.001,112370.0,112360.0,1.22817471]
[1757070178263,0.01456,112370.0,112360.0,2.03685471]
[1757070179668,0.001,112370.0,112360.0,2.03685471]
[1757070180267,0.001,112370.0,112360.0,1.22817471]
[1757070180566,0.001,112370.0,112360.0,2.03685471]
[1757070181766,0.001,112370.0,112360.0,1.22817471]
[1757070181968,0.001,112370.0,112360.0,2.03681471]
[1757070182268,0.001,112370.0,112360.0,1.22817471]
[1757070182464,0.001,112370.0,112360.0,1.77613]
[1757070182664,0.001,112370.0,112360.0,2.03681471]
[1757070186265,0.001,112370.0,112360.0,1.22817471]
[1757070186470,0.03604,112370.0,112360.0,2.03677471]
[1757070187467,0.03604,112370.0,112360.0,1.22817471]
[1757070187672,0.03604,112370.0,112360.0,2.03673471]
[1757070188174,0.03604,112370.0,112360.0,1.77605]
[1757070188364,0.03604,112370.0,112360.0,1.71673471]
[1757070188675,0.03604,112370.0,112360.0,1.77605]
[1757070188872,0.03604,112370.0,112360.0,2.03673471]
[1757070189771,0.03604,112370.0,112360.0,1.22817471]
[1757070189973,0.03604,112370.0,112360.0,2.03673471]
[1757070191375,0.03604,112370.0,112360.0,1.45605]
[1757070191672,0.29672471,112370.0,112360.0,0.28669]
[1757070191861,0.29672471,112370.0,112360.0,1.09525]
[1757070192764,0.29672471,112370.0,112360.0,1.35593471]
[1757070193172,0.29672471,112370.0,112360.0,1.09525]
[1757070193370,0.29672471,112370.0,112360.0,1.35593471]
[1757070197170,0.29672471,112370.0,112360.0,1.09525]
[1757070197476,0.29672471,112370.0,112360.0,1.35593471]
[1757070197875,0.29672471,112370.0,112360.0,0.54737471]
[1757070198069,0.29672471,112370.0,112360.0,1.35589471]
[1757070198376,0.29672471,112370.0,112360.0,0.54737471]
[1757070198575,0.29672471,112370.0,112360.0,1.35589471]
[1757070201578,0.29672471,112370.0,112360.0,1.09521]
[1757070201873,0.29672471,112370.0,112360.0,1.35589471]
[1757070203078,0.29672471,112370.0,112360.0,1.09521]
[1757070203276,0.29672471,112370.0,112360.0,1.35589471]
[1757070205878,0.03604,112370.0,112360.0,1.35589471]
[1757070206080,0.29672471,112370.0,112360.0,1.35589471]
[1757070206775,0.03604,112370.0,112360.0,1.35589471]
[1757070206980,0.01456,112370.0,112360.0,1.35589471]
[1757070207385,0.01456,112370.0,112360.0,1.09521]
[1757070207684,0.01456,112370.0,112360.0,1.35589471]
[1757070209081,0.01456,112370.0,112360.0,1.71669471]
[1757070209380,0.01456,112370.0,112360.0,2.03669471]
[1757070209783,0.01456,112370.0,112360.0,1.45601]
[1757070210079,0.01456,112370.0,112360.0,2.03669471]
[1757070212484,0.01456,112370.0,112360.0,1.71669471]
[1757070212886,0.01456,112370.0,112360.0,2.03669471]
[1757070213082,0.01456,112370.0,112360.0,1.71669471]
[1757070213386,0.001,112370.0,112360.0,2.12568931]
[1757070214487,0.001,112370.0,112360.0,1.82568931]
[1757070215087,0.001,112370.0,112360.0,2.12568931]
[1757070215988,0.001,112370.0,112360.0,2.37568931]
[1757070219393,0.001,112370.0,112360.0,2.12568931]
[1757070219595,0.001,112370.0,112360.0,2.37568931]
[1757070219793,0.0002,112380.0,112370.0,0.1165567]
[1757070219996,0.38178,112390.0,112370.0,1.07623393]
[1757070220296,0.02098,112390.0,112380.0,1.06912471]
[1757070220493,0.02078,112390.0,112380.0,1.38912471]
[1757070221199,0.02078,112390.0,112380.0,2.00308822]
[1757070221399,0.02078,112390.0,112380.0,2.36388822]
[1757070223601,0.02078,112390.0,112380.0,2.36384822]
[1757070224002,0.02078,112390.0,112380.0,1.55544822]
[1757070224198,0.02078,112390.0,112380.0,1.45646942]
[1757070224397,0.02078,112390.0,112380.0,0.88578471]
[1757070224602,0.02078,112390.0,112380.0,1.69414471]
[1757070224805,0.02078,112390.0,112380.0,2.01414471]
[1757070225106,0.02078,112390.0,112380.0,2.00414471]
[1757070225400,0.56760471,112390.0,112380.0,0.64664]
[1757070225602,0.56760471,112390.0,112380.0,1.455]
[1757070226310,0.56760471,112390.0,112380.0,0.28584]
[1757070226803,0.56760471,112390.0,112380.0,1.0942]
[1757070227106,0.56760471,112390.0,112380.0,1.09058471]
[1757070227403,0.56760471,112390.0,112380.0,1.40058471]
[1757070227594,0.30692,112390.0,112380.0,1.1399]
[1757070228301,0.30692,112390.0,112380.0,1.1499]
[1757070228900,0.30692,112390.0,112380.0,0.8299]
[1757070229303,0.30692,112390.0,112380.0,1.1499]
[1757070229805,0.30692,112390.0,112380.0,0.8299]
[1757070230102,0.30692,112390.0,112380.0,1.1499]
[1757070230698,0.30692,112390.0,112380.0,0.34154]
[1757070230905,0.30692,112390.0,112380.0,0.82986]
[1757070231100,0.30692,112390.0,112380.0,1.14986]
[1757070232809,0.30692,112390.0,112380.0,1.41416]
[1757070233810,0.30692,112390.0,112380.0,1.09416]
[1757070234609,0.30692,112390.0,112380.0,0.28584]
[1757070234610,0.5385759,112390.0,112380.0,0.28584]
[1757070234806,0.8993759,112390.0,112380.0,0.28584]
[1757070235010,0.8993759,112390.0,112380.0,1.07258]
[1757070235509,0.8993759,112390.0,112380.0,0.2643]
[1757070235705,0.8993759,112390.0,112380.0,1.07258]
[1757070236211,0.9013759,112390.0,112380.0,1.07258]
[1757070237307,0.9013759,112390.0,112380.0,0.2643]
[1757070237513,0.9043759,112390.0,112380.0,1.07258]
[1757070238912,0.9043759,112390.0,112380.0,0.80828]
[1757070239312,0.9043759,112390.0,112370.0,0.28249252]
[1757070239499,0.6285959,112380.0,112370.0,0.28249252]
[1757070239698,0.39694,112380.0,112370.0,1.08957252]
[1757070240204,0.6285959,112380.0,112370.0,1.08957252]
[1757070240408,0.8785959,112380.0,112370.0,1.09185252]
[1757070240802,0.8795959,112380.0,112370.0,1.09185252]
[1757070241006,0.03614,112360.0,112350.0,0.30390621]
[1757070241205,0.6285959,112360.0,112350.0,0.84892621]
[1757070241408,0.6285959,112360.0,112350.0,0.03960621]
[1757070241606,0.6285959,112360.0,112350.0,0.84900621]
[1757070242312,0.6285959,112360.0,112350.0,0.82746621]
[1757070243512,0.0132,112350.0,112340.0,1.98430901]
[1757070243704,0.6046559,112350.0,112340.0,2.79362901]
[1757070244208,0.61343511,112350.0,112340.0,2.79362901]
[1757070244713,0.38177921,112350.0,112340.0,2.52932901]
[1757070249615,0.373,112350.0,112340.0,2.52932901]
[1757070249816,0.373,112350.0,112340.0,2.84932901]
[1757070250322,0.39714,112360.0,112350.0,0.02237]
[1757070250513,0.39694,112360.0,112350.0,0.34237]
[1757070250818,0.39694,112360.0,112350.0,0.60667]
[1757070251115,0.03614,112360.0,112350.0,0.60667]
[1757070251513,0.03614,112360.0,112350.0,0.6245061]
[1757070251711,0.001,112360.0,112350.0,1.2353061]
[1757070252118,0.001,112360.0,112350.0,1.5559645]
[1757070252708,0.0134,112370.0,112350.0,1.5559645]
[1757070252909,0.03634,112370.0,112360.0,0.83129]
[1757070253116,0.03614,112370.0,112360.0,1.15129]
[1757070253718,0.03614,112370.0,112360.0,0.83129]
[1757070254121,0.03714,112370.0,112360.0,0.83129]
[1757070254621,0.04606077,112370.0,112360.0,0.83129]
[1757070255521,0.04606077,112370.0,112360.0,0.83573]
[1757070255821,0.04610077,112370.0,112360.0,0.83573]
[1757070257917,0.27775667,112370.0,112360.0,0.02681]
[1757070258121,0.27775667,112370.0,112360.0,0.83609]
[1757070258322,0.04610077,112370.0,112360.0,0.02681]
[1757070258513,0.88855667,112370.0,112360.0,0.81392]
[1757070259022,1.12021257,112370.0,112360.0,0.00444]
[1757070259221,0.65690077,112370.0,112360.0,0.00444]
[1757070259523,1.12021257,112370.0,112360.0,0.00444]
[1757070259712,0.88855667,112370.0,112360.0,0.00444]
[1757070261825,0.63855667,112370.0,112360.0,0.00444]
[1757070263325,0.63855667,112370.0,112360.0,0.02617]
[1757070265038,0.63855667,112370.0,112360.0,0.00444]
[1757070265426,0.63855667,112370.0,112360.0,0.82332]
[1757070266729,0.63855667,112370.0,112360.0,0.00444]
[1757070266929,0.63855667,112370.0,112360.0,0.82308]
[1757070267124,0.63855667,112370.0,112360.0,0.00444]
[1757070267630,0.63855667,112370.0,112360.0,0.82284]
[1757070268525,0.63855667,112370.0,112360.0,0.82276]
[1757070268725,0.63855667,112370.0,112360.0,0.00444]
[1757070270129,0.40690077,112370.0,112360.0,0.02617]
[1757070270328,0.40690077,112370.0,112360.0,0.27617]
[1757070271130,0.63855667,112370.0,112360.0,0.27617]
[1757070272727,0.66315478,112370.0,112360.0,0.27617]
[1757070274328,0.43149888,112370.0,112360.0,0.27617]
[1757070274535,0.66315478,112370.0,112360.0,0.54047]
[1757070275835,0.63855667,112370.0,112360.0,0.54047]
[1757070276235,0.63855667,112370.0,112360.0,0.86047]
[1757070277323,0.63855667,112370.0,112360.0,0.54047]
[1757070279437,0.63855667,112370.0,112360.0,1.10755]
[1757070280130,0.40690077,112370.0,112360.0,1.10755]
[1757070280331,0.63855667,112370.0,112360.0,1.10755]
[1757070281033,0.40690077,112370.0,112360.0,1.10755]
[1757070281337,0.63855667,112370.0,112360.0,1.10755]
[1757070282233,0.63855667,112370.0,112360.0,0.29047]
[1757070282437,0.63855667,112370.0,112360.0,1.08582]
[1757070283039,0.40690077,112370.0,112360.0,1.08582]
[1757070283341,0.63855667,112370.0,112360.0,1.08582]
[1757070283543,0.63855667,112370.0,112360.0,0.26874]
[1757070283735,0.63855667,112370.0,112360.0,1.05634]
[1757070286246,0.63855667,112370.0,112360.0,0.81377]
[1757070286539,0.63855667,112370.0,112360.0,0.00444]
[1757070286751,0.88855667,112370.0,112360.0,0.82144]
[1757070287439,0.91770876,112370.0,112360.0,0.82144]
[1757070292647,0.91770876,112370.0,112360.0,0.82072]
[1757070294044,0.91770876,112370.0,112360.0,0.00444]
[1757070294253,0.91770876,112370.0,112360.0,0.64912]
[1757070294552,0.94231862,112370.0,112360.0,0.00444]
[1757070300752,0.68151063,112370.0,112360.0,0.00444]
[1757070300947,0.94231862,112370.0,112360.0,0.00444]
[1757070301148,0.68151063,112370.0,112360.0,0.00444]
[1757070301350,0.68151063,112370.0,112360.0,0.02653]
[1757070301551,0.94231862,112370.0,112360.0,0.02653]
[1757070302554,0.94231862,112370.0,112360.0,0.00444]
[1757070303060,0.94231862,112370.0,112360.0,0.02653]
[1757070305448,0.43151063,112370.0,112360.0,0.53733799]
[1757070305855,0.69231862,112370.0,112360.0,0.53733799]
[1757070307159,0.43151063,112370.0,112360.0,0.53733799]
[1757070307356,0.33151862,112370.0,112360.0,1.35297799]
[1757070307558,0.69231862,112370.0,112360.0,1.35297799]
[1757070308351,0.33151862,112370.0,112360.0,1.35297799]
[1757070308552,0.32259785,112370.0,112360.0,1.35297799]
[1757070309664,0.06178986,112370.0,112360.0,1.35297799]
[1757070309965,0.06178986,112370.0,112360.0,1.61727799]
[1757070310466,0.06178986,112370.0,112360.0,1.12163799]
[1757070310663,0.42258986,112370.0,112360.0,1.61675799]
[1757070310867,0.42258986,112370.0,112360.0,1.93675799]
[1757070311059,0.32259785,112370.0,112360.0,1.93675799]
[1757070311260,0.68339785,112370.0,112360.0,1.93675799]
[1757070311768,0.68339785,112370.0,112360.0,1.61675799]
[1757070311969,0.68339785,112370.0,112360.0,1.93671799]
[1757070313072,0.68339785,112370.0,112360.0,1.12163799]
[1757070313272,0.68339785,112370.0,112360.0,1.93643799]
[1757070314065,0.32259785,112370.0,112360.0,1.93643799]
[1757070314269,0.06178986,112370.0,112360.0,1.93643799]
[1757070314471,0.42258986,112370.0,112360.0,1.12163799]
[1757070314772,0.42258986,112370.0,112360.0,1.93623799]
[1757070314967,0.39798,112370.0,112360.0,1.93623799]
[1757070315579,0.39798,112370.0,112360.0,0.54083]
[1757070315778,0.65878799,112370.0,112360.0,1.61615799]
[1757070316077,0.65878799,112370.0,112360.0,1.35535]
[1757070317677,0.65878799,112370.0,112360.0,1.61615799]
[1757070318277,0.65878799,112370.0,112360.0,1.35535]
[1757070318482,0.65878799,112370.0,112360.0,1.61615799]
[1757070320286,0.65878799,112370.0,112360.0,1.61619799]
[1757070323882,0.39798,112370.0,112360.0,1.61619799]
[1757070324087,0.65878799,112370.0,112360.0,1.61619799]
[1757070324489,0.65878799,112370.0,112360.0,1.35539]
[1757070324687,0.65878799,112370.0,112360.0,1.93619799]
[1757070327791,0.65878799,112370.0,112360.0,1.67539]
[1757070327994,0.65878799,112370.0,112360.0,1.93619799]
[1757070329582,0.29798799,112370.0,112360.0,1.93619799]
[1757070329777,0.65878799,112370.0,112360.0,1.61619799]
[1757070330086,0.65878799,112370.0,112360.0,1.35539]
[1757070330286,0.65878799,112370.0,112360.0,1.92619799]
[1757070330995,0.29798799,112370.0,112360.0,1.92619799]
[1757070332001,0.00104,112370.0,112360.0,1.92619799]
[1757070332296,0.00104,112370.0,112360.0,2.01519279]
[1757070332686,0.00104,112370.0,112360.0,2.37599279]
[1757070333196,4e-05,112370.0,112360.0,2.37699279]
[1757070333798,4e-05,112370.0,112360.0,1.56143279]
[1757070334102,4e-05,112370.0,112360.0,2.37699279]
[1757070334803,4e-05,112370.0,112360.0,2.37799279]
[1757070338897,4e-05,112370.0,112360.0,2.37755279]
[1757070339300,4e-05,112370.0,112360.0,2.12755279]
[1757070340003,4e-05,112370.0,112360.0,1.31443279]
[1757070340395,4e-05,112370.0,112360.0,2.12735279]
[1757070345900,4e-05,112370.0,112360.0,2.37735279]
[1757070346206,0.0003,112380.0,112370.0,0.1189369]
[1757070346407,0.0001,112380.0,112370.0,1.06054489]
[1757070347702,0.0001,112380.0,112370.0,1.06498489]
[1757070349405,0.0001,112380.0,112370.0,1.0358136]
[1757070350208,0.0001,112380.0,112370.0,1.7589067]
[1757070350811,0.0001,112380.0,112370.0,0.9468267]
[1757070351002,0.0001,112380.0,112370.0,1.7587467]
[1757070351197,0.0001,112380.0,112370.0,0.9468267]
[1757070351505,0.0214,112380.0,112370.0,1.2111267]
[1757070351705,0.0214,112380.0,112370.0,2.0229667]
[1757070354909,0.0214,112380.0,112370.0,2.0226467]
[1757070356415,0.0214,112380.0,112370.0,1.79101]
[1757070356713,0.0214,112380.0,112370.0,2.0226467]
[1757070357910,0.0001,112380.0,112370.0,2.0226467]
[1757070359011,0.0001,112380.0,112370.0,1.2111267]
[1757070359208,0.0001,112380.0,112370.0,2.0223667]
[1757070363111,0.0001,112380.0,112370.0,1.2111267]
[1757070363317,0.0001,112380.0,112370.0,2.0260067]
[1757070365719,0.0001,112380.0,112370.0,1.32284024]
[1757070366016,0.0001,112380.0,112370.0,2.13752024]
[1757070370315,0.0001,112380.0,112370.0,1.90588354]
[1757070370516,0.0001,112380.0,112370.0,2.13752024]
[1757070384026,0.0001,112380.0,112370.0,2.22650704]
[1757070384731,0.0001,112380.0,112370.0,2.47650704]
[1757070385826,0.02098,112390.0,112370.0,2.56548594]
[1757070386026,0.02098,112390.0,112380.0,0.7028356]
[1757070386226,0.02078,112390.0,112380.0,1.0228356]
[1757070386730,0.02078,112390.0,112380.0,1.0319194]
[1757070387231,0.02378,112390.0,112380.0,1.0319194]
[1757070387632,0.02378,112390.0,112380.0,1.0363594]
[1757070389734,0.00946,112390.0,112380.0,1.3006594]
[1757070391633,0.003,112390.0,112380.0,1.3006594]
[1757070392135,0.0002,112400.0,112390.0,0.0889709]
[1757070392328,0.0002,112410.0,112390.0,1.8136076]
[1757070392528,0.0002,112410.0,112400.0,0.2316367]
[1757070392729,0.40606599,112420.0,112400.0,0.8159367]
[1757070392929,0.40606599,112420.0,112410.0,0.81252]
[1757070393234,0.65586599,112420.0,112410.0,1.13252]
[1757070393533,0.40586599,112420.0,112410.0,1.13242]
[1757070393834,0.41186599,112420.0,112410.0,1.13242]
[1757070394134,0.41486599,112420.0,112410.0,1.13242]
[1757070394331,0.41486599,112420.0,112410.0,1.39672]
[1757070394836,0.41486599,112420.0,112410.0,0.5843]
[1757070395035,0.41486599,112420.0,112410.0,1.39662]
[1757070395937,0.41286599,112420.0,112410.0,1.39662]
[1757070396637,0.41286599,112420.0,112410.0,0.5843]
[1757070396835,0.41286599,112420.0,112410.0,1.3965]
[1757070397134,0.41286599,112420.0,112410.0,1.46877814]
[1757070397338,0.05206599,112420.0,112410.0,1.46877814]
[1757070399138,0.05206599,112420.0,112410.0,0.88821484]
[1757070399342,0.02887599,112420.0,112410.0,1.38009484]
[1757070399636,0.02009,112420.0,112410.0,1.70005484]
[1757070399839,0.02009,112420.0,112410.0,1.38005484]
[1757070400038,0.02009,112420.0,112410.0,1.70005484]
[1757070400539,0.02009,112420.0,112410.0,0.88821484]
[1757070400739,0.04328,112420.0,112410.0,1.69993484]
[1757070401741,0.04328,112420.0,112410.0,1.69983484]
[1757070402142,0.02009,112420.0,112410.0,1.69983484]
[1757070402345,0.007,112420.0,112410.0,1.78878994]
[1757070402733,0.007,112420.0,112410.0,1.79770758]
[1757070403137,0.007,112420.0,112410.0,2.15850758]
[1757070404641,0.007,112420.0,112410.0,2.40850758]
[1757070406546,0.007,112420.0,112410.0,2.17687088]
[1757070406738,0.007,112420.0,112410.0,2.40850758]
[1757070408445,0.007,112420.0,112410.0,4.12882758]
[1757070408744,0.007,112420.0,112410.0,4.12878758]
[1757070408936,0.007,112420.0,112410.0,4.13322758]
[1757070409131,0.02069,112420.0,112410.0,2.74115814]
[1757070409331,0.5023267,112420.0,112410.0,2.98287814]
[1757070409537,0.53120944,112420.0,112410.0,2.66887814]
[1757070409737,0.53120944,112420.0,112410.0,2.66987814]
[1757070409738,0.52820944,112420.0,112410.0,2.66987814]
[1757070410245,0.52420944,112420.0,112410.0,2.66987814]
[1757070410444,0.52420944,112420.0,112410.0,1.85705814]
[1757070410640,0.52520944,112420.0,112410.0,2.66977814]
[1757070410946,0.52520944,112420.0,112410.0,1.85705814]
[1757070411137,0.52520944,112420.0,112410.0,2.66981814]
[1757070411337,0.52720944,112420.0,112410.0,2.66881814]
[1757070411946,0.52720944,112420.0,112410.0,1.85605814]
[1757070412247,0.52820944,112420.0,112410.0,2.66877814]
[1757070413851,0.52820944,112420.0,112410.0,2.93297814]
[1757070415141,0.88900944,112420.0,112410.0,2.93297814]
[1757070416343,0.37849,112420.0,112410.0,3.19349758]
[1757070416549,0.004,112420.0,112410.0,3.80297212]
[1757070417144,0.004,112420.0,112410.0,3.54245268]
[1757070417749,0.003,112420.0,112410.0,3.54245268]
[1757070418547,0.01669,112420.0,112410.0,3.54245268]
[1757070418846,0.01369,112420.0,112410.0,3.45271758]
[1757070419239,0.01369,112420.0,112410.0,3.81351758]
[1757070420737,0.01369,112420.0,112410.0,3.81331758]
[1757070421250,0.01369,112420.0,112410.0,3.00147758]
[1757070421442,0.01369,112420.0,112410.0,3.81323758]
[1757070422044,0.01399,112430.0,112410.0,4.07375702]
[1757070422346,0.01399,112430.0,112420.0,0.26051944]
[1757070422549,0.0001,112430.0,112420.0,0.95959188]
[1757070423142,0.0001,112430.0,112420.0,1.31273908]
[1757070423543,0.0011,112430.0,112420.0,1.31273908]
[1757070423746,0.0011,112430.0,112420.0,1.31717908]
[1757070425548,0.0001,112430.0,112420.0,1.32590546]
[1757070426154,0.0001,112430.0,112420.0,1.57590546]
[1757070426853,0.0001,112430.0,112420.0,1.31538602]
[1757070427050,0.0001,112430.0,112420.0,1.57590546]
[1757070427454,0.0001,112430.0,112420.0,1.57580546]
[1757070429954,0.0001,112430.0,112420.0,2.38740546]
[1757070430344,0.0001,112430.0,112420.0,1.57580546]
[1757070430540,0.0001,112430.0,112420.0,1.56707908]
[1757070430753,0.0001,112430.0,112420.0,2.37887908]
[1757070433154,0.0001,112430.0,112420.0,2.11835964]
[1757070433343,0.0001,112430.0,112420.0,1.47813188]
[1757070433546,0.01379,112430.0,112420.0,2.28969188]
[1757070434655,0.01379,112430.0,112420.0,1.47813188]
[1757070435055,0.01379,112430.0,112420.0,2.28989188]
[1757070436059,0.01379,112430.0,112420.0,2.02937244]
[1757070436255,0.01379,112430.0,112420.0,2.28979188]
[1757070438659,0.01379,112430.0,112420.0,1.47803188]
[1757070438850,0.0001,112430.0,112420.0,2.28943188]
[1757070440763,0.0001,112430.0,112420.0,2.02891244]
[1757070440961,0.0001,112430.0,112420.0,2.28943188]
[1757070443462,0.0001,112430.0,112420.0,2.37837898]
[1757070444561,0.0001,112430.0,112420.0,2.37827898]
[1757070444762,0.0001,112430.0,112420.0,1.57739842]
[1757070444964,0.0001,112430.0,112420.0,2.38827842]
[1757070445162,0.0001,112430.0,112420.0,2.12775898]
[1757070445459,0.0001,112430.0,112420.0,1.31687898]
[1757070445659,0.0001,112430.0,112420.0,2.12991898]
[1757070445866,0.0001,112430.0,112420.0,2.13191898]
[1757070446365,0.0001,112430.0,112420.0,2.13091898]
[1757070446566,0.0001,112430.0,112420.0,2.12991898]
[1757070446760,0.0001,112430.0,112420.0,1.31887898]
[1757070447063,0.0001,112430.0,112420.0,2.12995898]
[1757070450355,0.0001,112430.0,112420.0,2.39047842]
[1757070452767,0.0002,112440.0,112430.0,0.0889393]
[1757070452974,0.0135,112450.0,112440.0,0.0889314]
[1757070453172,0.01389,112460.0,112440.0,2.10163028]
[1757070453375,0.03523,112460.0,112450.0,0.62131944]
[1757070453673,0.03503,112460.0,112450.0,0.94131944]
[1757070454074,0.03503,112460.0,112450.0,0.94575944]
[1757070454961,0.03503,112460.0,112450.0,1.75647944]
[1757070455164,0.04387276,112460.0,112450.0,0.94575944]
[1757070455365,0.04387276,112460.0,112450.0,1.75643944]
[1757070456078,0.04687276,112460.0,112450.0,1.75643944]
[1757070456575,0.04387276,112460.0,112450.0,1.75639944]
[1757070456778,0.04487276,112460.0,112450.0,1.75639944]
[1757070457874,0.04487276,112460.0,112450.0,0.62575944]
[1757070458176,0.04487276,112460.0,112450.0,1.74631944]
[1757070458374,0.04487276,112460.0,112450.0,2.01051944]
[1757070459285,0.04487276,112460.0,112450.0,1.70051944]
[1757070459579,0.04487276,112460.0,112450.0,2.02039944]
[1757070459779,0.04487276,112460.0,112450.0,1.70027944]
[1757070460180,0.04487276,112460.0,112450.0,2.02027944]
[1757070460981,0.04487276,112460.0,112450.0,1.75976]
[1757070461182,0.04487276,112460.0,112450.0,2.02027944]
[1757070461987,0.04487276,112460.0,112450.0,2.02017944]
[1757070463685,0.04487276,112460.0,112450.0,1.70017944]
[1757070463885,0.04487276,112460.0,112450.0,2.02017944]